bitfinex/quotes_SOLUSD_20220130
["timestamp","ask_amount","ask_price","bid_price","bid_amount"]
[1643558855073,0.75,95.706,95.64,30.824]
[1643558855270,0.75,95.706,95.64,15.14]
[1643558855672,0.75,95.706,95.641,24.8801]
[1643558856471,0.5,95.706,95.641,24.8801]
[1643558856671,0.5,95.706,95.651,6.0]
[1643558856877,24.94949037,95.751,95.66,15.14]
[1643558857077,0.5,95.75,95.66,15.14]
[1643558857277,0.5,95.75,95.661,0.25]
[1643558857682,37.0508898,95.749,95.661,24.8849]
[1643558857878,0.5,95.748,95.661,36.3549]
[1643558858482,0.5,95.748,95.67,15.679]
[1643558858681,0.5,95.748,95.661,24.3849]
[1643558859980,0.5,95.748,95.68,15.677]
[1643558860184,0.75,95.748,95.68,15.677]
[1643558860983,0.75,95.748,95.69,15.675]
[1643558861384,0.5,95.748,95.67,67.39]
[1643558861584,0.5,95.748,95.671,0.25]
[1643558861987,0.5,95.748,95.69,15.676]
[1643558862586,0.5,95.748,95.671,0.25]
[1643558862788,0.5,95.748,95.68,6.0]
[1643558862986,0.5,95.748,95.7,15.675]
[1643558863985,0.75,95.748,95.7,15.675]
[1643558864385,0.75,95.748,95.71,15.674]
[1643558865022,0.75,95.748,95.681,23.9828]
[1643558865219,0.75,95.748,95.69,52.238]
[1643558865427,0.75,95.748,95.71,15.673]
[1643558866419,0.5,95.748,95.71,15.673]
[1643558866620,1.44839037,95.77,95.71,15.14]
[1643558867028,0.102413,95.773,95.71,15.14]
[1643558867220,0.102413,95.773,95.711,0.25]
[1643558867620,0.102413,95.773,95.72,6.0]
[1643558867820,0.102413,95.773,95.721,0.25]
[1643558868321,0.102413,95.773,95.71,15.14]
[1643558868722,0.102413,95.773,95.72,15.671]
[1643558869125,0.102413,95.773,95.71,15.14]
[1643558869521,1.44839037,95.766,95.587,1.44038839]
[1643558869722,1.44839037,95.764,95.68,15.677]
[1643558869922,42.45958906,95.763,95.67,15.14]
[1643558870122,0.5,95.762,95.67,15.14]
[1643558870324,0.75,95.762,95.67,15.14]
[1643558870726,16.132252,95.761,95.69,15.14]
[1643558870929,0.5,95.76,95.657,20.59895622]
[1643558871129,3.20669142,95.76,95.67,15.14]
[1643558871527,104.9,95.758,95.67,15.14]
[1643558871728,3.38885296,95.757,95.67,15.14]
[1643558871926,2.88885296,95.756,95.67,15.14]
[1643558872126,5.84554438,95.756,95.67,15.14]
[1643558872325,3.13885296,95.755,95.67,15.14]
[1643558872531,2.88885296,95.754,95.66,15.14]
[1643558872725,5.84554438,95.754,95.66,15.14]
[1643558872926,105.15,95.753,95.65,23.6049]
[1643558873129,0.5,95.752,95.65,54.4279]
[1643558873333,2.88885296,95.752,95.65,38.7449]
[1643558873528,2.89678073,95.78,95.682,2.28089879]
[1643558873731,2.89678073,95.786,95.682,2.28089879]
[1643558873931,0.08956394,95.794,95.7,189.28]
[1643558874129,0.002413,95.773,95.76,15.665]
[1643558874329,0.002413,95.773,95.761,0.25]
[1643558874529,0.002413,95.773,95.77,6.0]
[1643558874728,9.266e-05,95.807,95.77,6.0]
[1643558874928,9.266e-05,95.807,95.771,0.25]
[1643558875128,9.266e-05,95.807,95.78,15.14]
[1643558875429,9.266e-05,95.807,95.79,15.659]
[1643558875638,9.266e-05,95.807,95.791,6.0]
[1643558875841,9.266e-05,95.807,95.8,21.14]
[1643558876144,2.89678073,95.938,95.803,44.0]
[1643558876377,2.89678073,95.938,95.84,15.649]
[1643558876574,37.99589947,95.907,95.85,15.14]
[1643558876769,43.61639142,95.888,95.851,0.25]
[1643558876979,0.3,95.887,95.85,15.14]
[1643558877169,0.5,95.919,95.85,15.14]
[1643558877367,0.5,95.932,95.85,15.14]
[1643558877567,0.25,95.918,95.83,30.791]
[1643558877768,15.651,95.91,95.83,30.791]
[1643558877968,35.11705471,95.901,95.83,15.14]
[1643558878170,36.29033698,95.886,95.83,15.14]
[1643558878367,0.5,95.885,95.83,15.14]
[1643558878868,0.5,95.885,95.831,0.25]
[1643558879469,0.0082658,95.876,95.84,6.0]
[1643558879668,0.0082658,95.876,95.85,15.14]
[1643558879869,0.0082658,95.876,95.851,0.25]
[1643558880070,0.0082658,95.876,95.86,6.0]
[1643558880269,0.0082658,95.876,95.87,15.14]
[1643558880674,0.0082658,95.876,95.871,0.25]
[1643558880870,0.0082658,95.876,95.871,13.80887373]
[1643558881070,0.0082658,95.876,95.872,2.28664699]
[1643558881272,0.0082658,95.876,95.872,21.86963756]
[1643558881471,0.0082658,95.876,95.87,204.42]
[1643558881671,0.0082658,95.876,95.87,15.14]
[1643558881871,0.0082658,95.876,95.86,15.647]
[1643558882471,0.0082658,95.876,95.85,15.14]
[1643558882870,0.0082658,95.876,95.81,189.28]
[1643558882871,0.0082658,95.876,95.81,15.14]
[1643558883074,0.0082658,95.876,95.77,15.14]
[1643558883374,0.0082658,95.876,95.76,21.20439994]
[1643558883572,0.0082658,95.876,95.775,6.0]
[1643558884372,0.0082658,95.876,95.765,22.8204]
[1643558884574,0.0082658,95.876,95.76,6.06439994]
[1643558884773,15.14,95.87,95.76,6.06439994]
[1643558885075,41.69850967,95.869,95.76,6.06439994]
[1643558885273,0.31894269,95.863,95.76,6.06439994]
[1643558885472,44.0,95.848,95.738,497.65329017]
[1643558885673,0.5,95.847,95.738,497.65329017]
[1643558885877,14.26697,95.846,95.738,497.65329017]
[1643558886075,0.5,95.845,95.703,2.28500904]
[1643558886275,15.14,95.84,95.703,2.28500904]
[1643558886475,0.5,95.839,95.703,2.28500904]
[1643558886675,0.75,95.839,95.703,2.28500904]
[1643558887175,0.25,95.839,95.703,2.28500904]
[1643558887376,0.25,95.839,95.713,6.0]
[1643558887778,0.75,95.839,95.714,2.28500904]
[1643558887978,0.75,95.839,95.714,8.28500904]
[1643558888179,0.75,95.839,95.72,6.0]
[1643558888382,0.75,95.839,95.724,6.0]
[1643558888579,0.75,95.839,95.725,6.0]
[1643558889281,0.75,95.839,95.726,0.25]
[1643558889881,0.5,95.839,95.727,2.28500904]
[1643558890081,0.5,95.839,95.727,14.64500904]
[1643558890283,0.5,95.839,95.728,0.25]
[1643558890482,0.5,95.839,95.73,15.666]
[1643558890886,0.5,95.839,95.731,0.25]
[1643558891085,0.5,95.839,95.72,6.0]
[1643558891289,105.65,95.839,95.72,6.0]
[1643558891484,0.5,95.838,95.714,6.0]
[1643558891783,0.5,95.838,95.711,6.0]
[1643558892285,0.5,95.838,95.691,2.28500904]
[1643558892485,0.5,95.838,95.669,16.50309413]
[1643558892486,0.30817093,95.828,95.631,72.0439]
[1643558892785,36.36766784,95.819,95.673,2.28500904]
[1643558892986,0.5,95.818,95.687,6.0]
[1643558893185,12.52,95.81,95.687,6.0]
[1643558893488,12.52,95.81,95.662,2.29076368]
[1643558893489,29.985508,95.809,95.662,2.29076368]
[1643558893686,0.5,95.808,95.66,12.52]
[1643558893885,15.679,95.8,95.65,36.5136]
[1643558894186,104.9,95.788,95.65,36.5136]
[1643558894387,0.3064614,95.784,95.65,23.9936]
[1643558894589,12.52,95.78,95.65,23.9936]
[1643558894789,0.5,95.779,95.644,16.78293502]
[1643558895014,52.269,95.77,95.644,16.78293502]
[1643558895189,34.41410857,95.769,95.644,16.78293502]
[1643558895389,0.3,95.768,95.644,16.78293502]
[1643558895590,0.5,95.768,95.644,16.78293502]
[1643558895890,0.5,95.768,95.631,47.3768]
[1643558896093,0.5,95.768,95.64,2.29076368]
[1643558896290,0.5,95.768,95.678,0.25]
[1643558896591,0.5,95.768,95.678,2.54076368]
[1643558896791,0.5,95.768,95.687,6.0]
[1643558896989,0.5,95.768,95.688,6.0]
[1643558897189,0.5,95.768,95.688,8.29076368]
[1643558897389,0.5,95.768,95.689,0.25]
[1643558897791,0.75,95.768,95.689,0.25]
[1643558897990,0.75,95.768,95.687,6.0]
[1643558898191,0.75,95.768,95.67,15.676]
[1643558898390,0.75,95.768,95.678,0.25]
[1643558899392,0.75,95.768,95.671,0.25]
[1643558899797,0.75,95.768,95.68,6.0]
[1643558899995,0.5,95.768,95.681,0.25]
[1643558900293,0.5,95.768,95.681,2.54076368]
[1643558900494,0.5,95.768,95.661,6.0]
[1643558900994,0.5,95.768,95.67,6.0]
[1643558901297,0.5,95.768,95.68,15.675]
[1643558901493,0.5,95.768,95.672,6.0]
[1643558901694,0.5,95.768,95.69,6.0]
[1643558901894,0.5,95.768,95.691,0.25]
[1643558902097,0.5,95.768,95.691,8.54076368]
[1643558902516,0.5,95.768,95.692,2.29076368]
[1643558902717,0.5,95.768,95.7,15.671]
[1643558903017,0.75,95.809,95.71,6.0]
[1643558903319,0.75,95.809,95.711,0.25]
[1643558903518,0.25,95.809,95.711,6.25]
[1643558903718,35.02994075,95.809,95.711,0.25]
[1643558903921,0.5,95.808,95.68,12.52]
[1643558904117,0.5,95.808,95.702,6.0]
[1643558904318,0.5,95.808,95.703,0.25]
[1643558904518,0.5,95.808,95.703,6.25]
[1643558904719,0.5,95.808,95.703,8.54076368]
[1643558904919,0.5,95.808,95.704,2.29076368]
[1643558905118,0.5,95.808,95.714,6.0]
[1643558905318,0.5,95.808,95.715,0.25]
[1643558905918,105.4,95.808,95.715,0.25]
[1643558906120,0.5,95.807,95.715,0.25]
[1643558906320,0.75,95.807,95.715,0.25]
[1643558906522,0.75,95.807,95.71,6.0]
[1643558906726,0.75,95.807,95.711,0.25]
[1643558906920,0.75,95.807,95.711,10.91]
[1643558910923,0.75,95.807,95.711,10.66]
[1643558911426,16.15683,95.806,95.69,15.673]
[1643558911625,0.5,95.805,95.693,0.25]
[1643558911928,0.75,95.807,95.693,0.25]
[1643558912327,0.75,95.807,95.694,2.29076353]
[1643558912524,0.75,95.807,95.693,0.25]
[1643558913127,0.75,95.807,95.693,2.54076353]
[1643558913526,0.75,95.807,95.693,0.25]
[1643558915227,15.678,95.8,95.693,0.25]
[1643558915428,12.52,95.79,95.693,0.25]
[1643558915629,36.21405207,95.789,95.694,2.29076353]
[1643558915827,105.65,95.788,95.694,2.29076353]
[1643558916030,0.5,95.787,95.692,47.7474]
[1643558916229,15.674,95.78,95.654,48.6838]
[1643558916430,105.4,95.779,95.654,48.6838]
[1643558916628,0.5,95.778,95.654,48.6838]
[1643558916931,2.89678073,95.772,95.654,48.6838]
[1643558917127,12.52,95.76,95.654,48.6838]
[1643558917328,105.4,95.759,95.654,48.6838]
[1643558917527,0.5,95.758,95.654,48.6838]
[1643558918530,0.5,95.758,95.655,0.25]
[1643558918928,0.5,95.758,95.654,48.6838]
[1643558920329,0.5,95.758,95.655,0.25]
[1643558921530,0.5,95.758,95.654,48.6838]
[1643558921930,38.02579323,95.756,95.654,48.6838]
[1643558922133,0.5,95.755,95.654,48.6838]
[1643558922430,36.3265865,95.739,95.6,28.208]
[1643558922630,0.5,95.738,95.612,46.9175]
[1643558922829,0.75,95.738,95.612,46.9175]
[1643558923432,0.75,95.738,95.62,15.686]
[1643558923632,0.75,95.738,95.612,46.9175]
[1643558923933,0.75,95.738,95.613,0.25]
[1643558924131,0.75,95.738,95.622,6.0]
[1643558924331,0.75,95.738,95.623,0.25]
[1643558925533,0.75,95.738,95.613,0.25]
[1643558925936,0.75,95.738,95.613,2.54076353]
[1643558926136,0.75,95.738,95.623,6.0]
[1643558926137,105.65,95.738,95.623,6.0]
[1643558926340,105.65,95.738,95.624,25.1222]
[1643558926341,0.5,95.737,95.624,25.1222]
[1643558926537,104.9,95.738,95.624,33.41296353]
[1643558926737,104.9,95.738,95.625,0.2]
[1643558926937,36.3265865,95.739,95.625,0.2]
[1643558927142,36.3265865,95.739,95.63,52.266]
[1643558927344,36.3265865,95.739,95.631,0.45]
[1643558927538,36.3265865,95.739,95.64,6.0]
[1643558927938,0.25,95.738,95.641,6.25]
[1643558928142,0.25,95.738,95.642,6.0]
[1643558928338,0.25,95.738,95.643,0.25]
[1643558928538,36.3265865,95.739,95.651,6.0]
[1643558928737,36.3265865,95.739,95.652,6.0]
[1643558928938,36.3265865,95.739,95.652,0.45]
[1643558929139,36.3265865,95.739,95.652,0.25]
[1643558930240,0.25,95.738,95.651,0.2]
[1643558930440,0.25,95.738,95.651,0.45]
[1643558930638,0.25,95.738,95.651,0.2]
[1643558930841,0.25,95.738,95.651,0.45]
[1643558931638,0.55,95.738,95.651,0.45]
[1643558932839,0.55,95.738,95.651,0.2]
[1643558933039,0.55,95.738,95.644,0.45]
[1643558937141,105.45,95.738,95.644,0.45]
[1643558937341,0.3,95.737,95.644,0.45]
[1643558937545,0.3,95.738,95.644,0.2]
[1643558937744,0.3,95.738,95.644,0.45]
[1643558938343,105.2,95.738,95.644,0.2]
[1643558938543,0.3,95.737,95.644,0.2]
[1643558938842,105.45,95.738,95.644,0.2]
[1643558939041,0.3,95.737,95.644,0.2]
[1643558940444,0.55,95.738,95.644,0.2]
[1643558941043,0.3,95.738,95.644,0.2]
[1643558942043,13.71103547,95.737,95.644,0.2]
[1643558942243,105.2,95.736,95.613,0.2]
[1643558942442,0.3,95.735,95.613,0.2]
[1643558942947,43.78968534,95.718,95.613,23.733]
[1643558943250,0.3,95.717,95.614,0.2]
[1643558943444,105.45,95.717,95.614,0.2]
[1643558943643,0.3,95.716,95.614,0.2]
[1643558944048,15.693,95.71,95.614,0.2]
[1643558944246,12.52,95.7,95.614,0.2]
[1643558944443,35.93689705,95.699,95.614,0.2]
[1643558944645,0.2,95.698,95.577,49.1531]
[1643558944845,0.2,95.698,95.578,0.2]
[1643558945045,0.2,95.698,95.578,105.1]
[1643558945244,0.2,95.698,95.579,2.49076353]
[1643558945444,0.2,95.698,95.588,6.0]
[1643558945648,0.2,95.698,95.59,104.9]
[1643558945847,0.2,95.698,95.591,0.35]
[1643558946047,0.2,95.698,95.591,0.25]
[1643558946245,0.2,95.698,95.591,2.54076353]
[1643558946447,0.2,95.698,95.6,15.689]
[1643558946645,0.2,95.698,95.601,24.0943]
[1643558946846,0.2,95.698,95.602,6.45]
[1643558947051,0.2,95.698,95.602,0.45]
[1643558948149,0.2,95.698,95.61,15.689]
[1643558948348,0.45,95.698,95.611,0.45]
[1643558949747,0.45,95.698,95.611,0.2]
[1643558950149,0.45,95.698,95.602,0.45]
[1643558950349,0.45,95.698,95.602,0.2]
[1643558952157,105.35,95.698,95.602,0.2]
[1643558952358,0.2,95.697,95.602,0.2]
[1643558952657,0.45,95.698,95.602,0.45]
[1643558952859,0.2,95.698,95.603,2.29076353]
[1643558953056,0.2,95.698,95.613,6.0]
[1643558953259,0.2,95.698,95.614,0.25]
[1643558953656,0.2,95.698,95.613,6.0]
[1643558954158,0.2,95.698,95.611,6.0]
[1643558954356,0.45,95.698,95.611,6.0]
[1643558954558,0.45,95.698,95.612,0.25]
[1643558954858,105.35,95.698,95.611,6.0]
[1643558955065,0.2,95.697,95.612,0.25]
[1643558955457,0.45,95.698,95.612,0.25]
[1643558955657,0.45,95.698,95.612,23.6183]
[1643558955860,0.45,95.698,95.613,0.2]
[1643558956861,0.45,95.698,95.613,23.4701]
[1643558957059,105.35,95.698,95.623,6.0]
[1643558957258,0.2,95.697,95.624,0.25]
[1643558957661,0.45,95.698,95.624,0.25]
[1643558958562,0.45,95.698,95.623,6.0]
[1643558958787,0.45,95.698,95.624,0.25]
[1643558960365,0.45,95.698,95.614,0.45]
[1643558960964,0.45,95.698,95.623,6.0]
[1643558961363,0.45,95.698,95.624,0.25]
[1643558961763,105.35,95.698,95.624,0.25]
[1643558961964,0.2,95.697,95.624,0.25]
[1643558962164,0.45,95.698,95.624,0.25]
[1643558962364,0.45,95.698,95.62,15.688]
[1643558962565,0.45,95.698,95.621,0.2]
[1643558962766,0.45,95.698,95.621,0.45]
[1643558963169,0.45,95.698,95.621,0.25]
[1643558963769,0.45,95.698,95.614,0.45]
[1643558964170,0.45,95.698,95.63,15.686]
[1643558964370,0.45,95.698,95.631,0.2]
[1643558965069,0.2,95.698,95.64,15.684]
[1643558965270,0.2,95.699,95.641,0.45]
[1643558965674,0.2,95.699,95.65,6.0]
[1643558965870,0.3,95.749,95.651,0.25]
[1643558966075,2.77626341,95.748,95.68,15.678]
[1643558966296,3.07626341,95.748,95.681,0.2]
[1643558966695,0.3,95.748,95.681,0.2]
[1643558966895,0.3,95.748,95.681,0.45]
[1643558967097,0.3,95.769,95.69,15.675]
[1643558967297,0.3,95.776,95.691,48.1345]
[1643558967497,0.3,95.776,95.692,0.2]
[1643558967701,52.255,95.77,95.692,0.45]
[1643558967897,36.65194771,95.769,95.692,0.45]
[1643558968098,0.3,95.768,95.692,0.45]
[1643558969201,0.3,95.768,95.692,0.2]
[1643558969406,0.3,95.768,95.7,15.674]
[1643558969605,0.3,95.768,95.701,0.2]
[1643558969805,0.3,95.768,95.701,0.45]
[1643558970207,0.55,95.768,95.701,0.45]
[1643558971708,0.55,95.768,95.701,0.2]
[1643558971906,0.55,95.768,95.692,0.45]
[1643558972306,0.55,95.768,95.692,0.2]
[1643558972708,0.55,95.768,95.692,0.45]
[1643558973107,0.55,95.768,95.7,15.675]
[1643558973308,0.55,95.768,95.701,0.45]
[1643558973809,0.55,95.768,95.701,0.25]
[1643558974311,0.55,95.768,95.7,15.675]
[1643558974610,0.55,95.768,95.701,0.2]
[1643558974611,0.3,95.768,95.701,0.2]
[1643558975111,0.3,95.768,95.692,0.2]
[1643558975311,0.3,95.768,95.7,15.675]
[1643558975511,0.3,95.768,95.701,0.2]
[1643558975712,0.3,95.768,95.701,0.45]
[1643558975913,0.55,95.768,95.701,0.45]
[1643558976312,0.55,95.768,95.701,0.25]
[1643558976913,0.55,95.768,95.692,0.45]
[1643558977313,0.55,95.768,95.692,0.2]
[1643558978915,0.55,95.768,95.661,6.0]
[1643558979115,15.684,95.76,95.653,0.2]
[1643558979315,15.07,95.75,95.653,0.2]
[1643558979514,65.98456753,95.749,95.653,0.2]
[1643558979715,0.3,95.748,95.653,0.2]
[1643558979914,0.55,95.748,95.653,0.2]
[1643558980615,105.45,95.748,95.653,0.2]
[1643558980815,0.3,95.747,95.653,0.45]
[1643558983220,0.3,95.747,95.653,0.2]
[1643558983421,0.3,95.747,95.437,0.53]
[1643558983422,107.85669142,95.746,95.626,46.1404]
[1643558983726,0.3,95.745,95.63,15.685]
[1643558983920,104.9,95.744,95.631,0.2]
[1643558984120,15.07,95.73,95.631,0.2]
[1643558984419,38.35904251,95.729,95.631,0.2]
[1643558984619,0.3,95.728,95.631,0.45]
[1643558984819,105.2,95.728,95.631,0.45]
[1643558985044,0.2,95.727,95.627,0.45]
[1643558985220,0.55,95.727,95.627,0.45]
[1643558985921,0.55,95.727,95.63,15.685]
[1643558986122,0.55,95.727,95.631,0.2]
[1643558986326,0.55,95.727,95.627,0.45]
[1643558986926,0.55,95.728,95.65,15.683]
[1643558987125,0.55,95.728,95.651,0.2]
[1643558987323,0.55,95.728,95.627,0.45]
[1643558987524,105.45,95.728,95.627,0.45]
[1643558987724,0.3,95.727,95.627,0.45]
[1643558987924,0.55,95.728,95.64,15.685]
[1643558988124,0.55,95.728,95.641,0.2]
[1643558988929,105.45,95.728,95.641,0.2]
[1643558989228,0.3,95.727,95.631,0.2]
[1643558989426,0.55,95.728,95.631,0.25]
[1643558989725,0.55,95.728,95.627,0.45]
[1643558990025,0.55,95.728,95.64,15.685]
[1643558990225,0.55,95.728,95.641,24.8752]
[1643558990428,0.55,95.728,95.642,0.2]
[1643558992229,104.9,95.726,95.642,0.2]
[1643558992429,0.3,95.725,95.627,0.2]
[1643558992631,104.9,95.719,95.627,0.2]
[1643558992829,0.55,95.718,95.627,0.2]
[1643558993232,43.5041868,95.707,95.602,0.2]
[1643558993431,15.07,95.7,95.602,0.2]
[1643558993634,105.1,95.699,95.602,0.2]
[1643558993835,0.45,95.698,95.602,0.2]
[1643558994233,18.95529117,95.697,95.602,0.2]
[1643558994434,104.9,95.688,95.602,0.2]
[1643558994633,104.9,95.688,95.582,0.2]
[1643558994634,0.2,95.687,95.582,0.2]
[1643558994932,0.45,95.687,95.582,0.2]
[1643558995336,1.44721123,95.669,95.551,0.2]
[1643558995536,0.31142533,95.65,95.538,0.2]
[1643558995735,15.07,95.64,95.535,0.2]
[1643558996035,40.84456106,95.639,95.535,0.2]
[1643558996235,0.2,95.638,95.499,0.2]
[1643558996434,33.749563,95.638,95.499,0.2]
[1643558996637,108.05669142,95.637,95.499,0.2]
[1643558996835,104.9,95.635,95.499,0.2]
[1643558997036,15.707,95.62,95.499,0.2]
[1643558997335,0.2,95.634,95.499,0.2]
[1643558997336,15.07,95.61,95.499,0.2]
[1643558997535,0.2,95.609,95.499,0.2]
[1643558997836,0.45,95.609,95.499,0.45]
[1643558998034,105.35,95.609,95.499,0.45]
[1643558998235,0.2,95.608,95.499,0.45]
[1643558999138,15.706,95.6,95.51,15.706]
[1643558999335,15.706,95.6,95.511,0.45]
[1643558999336,38.16931443,95.599,95.511,0.45]
[1643558999536,0.45,95.598,95.511,0.2]
[1643558999937,0.45,95.598,95.511,24.4922]
[1643559000159,0.45,95.598,95.512,0.2]
[1643559000359,0.45,95.598,95.512,0.45]
[1643559001158,15.706,95.59,95.512,0.45]
[1643559001360,0.2,95.589,95.512,0.45]
[1643559001762,0.2,95.598,95.512,0.45]
[1643559002560,105.35,95.598,95.512,0.45]
[1643559002762,0.2,95.597,95.512,0.45]
[1643559002961,15.706,95.58,95.512,0.45]
[1643559003164,0.2,95.579,95.512,0.45]
[1643559003365,0.32380897,95.564,95.512,0.2]
[1643559003567,0.32380897,95.564,95.456,0.2]
[1643559003764,0.32380897,95.564,95.448,1.43381001]
[1643559003964,2.95669142,95.563,95.434,0.2]
[1643559004165,91.67088823,95.562,95.434,0.2]
[1643559004367,105.35,95.561,95.435,22.71773089]
[1643559004566,0.2,95.56,95.45,15.714]
[1643559004766,0.2,95.56,95.451,22.9389]
[1643559004965,3.15669142,95.56,95.452,0.2]
[1643559005166,2.95669142,95.559,95.452,22.91773089]
[1643559005366,2.95669142,95.559,95.453,0.2]
[1643559005566,0.25,95.558,95.453,22.91773089]
[1643559005766,0.25,95.558,95.454,0.2]
[1643559005966,2.95669142,95.557,95.454,0.45]
[1643559006167,2.95669142,95.557,95.454,0.25]
[1643559006367,0.25,95.556,95.454,0.25]
[1643559006767,2.95669142,95.555,95.454,0.25]
[1643559006973,2.95669142,95.555,95.452,0.45]
[1643559007170,0.25,95.554,95.452,0.45]
[1643559007369,0.25,95.554,95.452,0.2]
[1643559007969,0.25,95.554,95.47,15.712]
[1643559008169,0.25,95.554,95.471,0.2]
[1643559008373,0.45,95.56,95.471,0.2]
[1643559008771,0.45,95.56,95.471,46.3732]
[1643559008972,0.45,95.56,95.472,0.2]
[1643559012784,0.2,95.56,95.472,105.1]
[1643559012982,0.1,95.704,95.471,46.1732]
[1643559012983,0.2,95.569,95.483,104.9]
[1643559013179,0.2,95.579,95.485,104.9]
[1643559013379,1.44721123,95.665,95.531,148.9]
[1643559013580,76.21949149,95.638,95.541,6.0]
[1643559013780,36.87158411,95.649,95.55,52.314]
[1643559014181,36.87158411,95.649,95.56,21.07]
[1643559014381,36.87158411,95.649,95.561,0.25]
[1643559014583,15.69,95.66,95.561,8.53576012]
[1643559014787,15.69,95.66,95.58,15.69]
[1643559015191,15.69,95.66,95.59,6.0]
[1643559015384,15.69,95.66,95.591,0.25]
[1643559015587,37.67384692,95.659,95.591,0.25]
[1643559015884,37.92384692,95.659,95.591,0.25]
[1643559016284,37.92384692,95.659,95.61,15.69]
[1643559016483,37.67384692,95.659,95.61,15.69]
[1643559016684,52.296,95.69,95.61,15.69]
[1643559016885,52.299,95.68,95.61,15.69]
[1643559017086,2.95669142,95.689,95.541,30.6409608]
[1643559017287,107.85669142,95.689,95.58,52.299]
[1643559017484,2.95669142,95.679,95.573,0.25]
[1643559017684,35.39397321,95.678,95.573,0.25]
[1643559017883,0.25,95.677,95.573,0.25]
[1643559018084,3.20669142,95.677,95.573,0.25]
[1643559018283,15.693,95.65,95.59,15.693]
[1643559018684,2.95669142,95.676,95.591,0.25]
[1643559018685,0.2,95.676,95.591,0.25]
[1643559018884,0.25,95.686,95.6,6.0]
[1643559019088,0.25,95.686,95.591,0.25]
[1643559019285,2.95669142,95.685,95.6,15.691]
[1643559019687,0.25,95.684,95.591,0.25]
[1643559019890,0.25,95.684,95.573,23.7574]
[1643559020087,2.95669142,95.683,95.573,23.7574]
[1643559020286,0.25,95.682,95.573,23.7574]
[1643559020486,0.25,95.682,95.58,15.694]
[1643559020692,2.95669142,95.681,95.573,23.7574]
[1643559020887,0.25,95.68,95.573,23.7574]
[1643559021288,2.95669142,95.679,95.573,23.7574]
[1643559021488,2.95669142,95.679,95.59,15.692]
[1643559021688,15.694,95.66,95.59,15.692]
[1643559021890,33.69425914,95.659,95.59,15.692]